[Event "Sunway Sitges Chess Festival"]
[Date "2024.12.21"]
[White "Banerjee, Supratit"]
[Black "Khusenkhojaev, Mustafokhuja"]
[WhiteElo "2116"]
[BlackElo "2339"]
[Round "6.24"]
[Result "1/2-1/2"]
[TimeControl "40/5400+30:1800+30"]

1. e4 {[%clk 1:30:57]} 1... e5 {[%clk 1:29:55]} 2. Nf3 {[%clk 1:31:09]} 2... Nc6
{[%clk 1:30:11]} 3. Nc3 {[%clk 1:31:28]} 3... Nf6 {[%clk 1:30:20]} 4. Nd5 {[%clk
1:31:15]} 4... d6 {[%clk 1:22:24]} 5. d4 {[%clk 1:25:51]} 5... Bg4 {[%clk
1:09:44]} 6. dxe5 {[%clk 1:14:49]} 6... dxe5 {[%clk 0:59:24]} 7. Bg5 {[%clk
1:05:47]} 7... Be7 {[%clk 0:56:58]} 8. Bb5 {[%clk 1:04:32]} 8... O-O {[%clk
0:51:11]} 9. Bxc6 {[%clk 0:51:51]} 9... bxc6 {[%clk 0:50:50]} 10. Nxf6+ {[%clk
0:52:03]} 10... Bxf6 {[%clk 0:51:09]} 11. Qxd8 {[%clk 0:52:08]} 11... Rfxd8
{[%clk 0:51:29]} 12. Bxf6 {[%clk 0:51:45]} 12... gxf6 {[%clk 0:51:57]} 13. h3
{[%clk 0:45:30]} 13... Be6 {[%clk 0:47:53]} 14. Ke2 {[%clk 0:40:08]} 14... Rab8
{[%clk 0:48:01]} 15. b3 {[%clk 0:40:15]} 15... a5 {[%clk 0:47:52]} 16. g4 {[%clk
0:39:17]} 16... a4 {[%clk 0:45:24]} 17. Rad1 {[%clk 0:36:46]} 17... Rd6 {[%clk
0:45:34]} 18. Ke3 {[%clk 0:25:20]} 18... c5 {[%clk 0:42:47]} 19. g5 {[%clk
0:14:44]} 19... Kg7 {[%clk 0:42:31]} 20. Rdg1 {[%clk 0:13:29]} 20... c4 {[%clk
0:41:32]} 21. gxf6+ {[%clk 0:10:42]} 21... Kxf6 {[%clk 0:41:45]} 22. bxc4 {[%clk
0:10:01]} 22... Bxc4 {[%clk 0:40:33]} 23. Rg5 {[%clk 0:10:14]} 23... Be6 {[%clk
0:39:17]} 24. Rxe5 {[%clk 0:08:48]} 24... Rc6 {[%clk 0:39:15]} 25. Nd4 {[%clk
0:08:00]} 25... Rc3+ {[%clk 0:38:17]} 26. Kf4 {[%clk 0:08:22]} 26... c5 {[%clk
0:37:19]} 27. Nxe6 {[%clk 0:08:18]} 27... fxe6 {[%clk 0:37:47]} 28. Rh5 {[%clk
0:08:08]} 28... Rxc2 {[%clk 0:35:46]} 29. Rh6+ {[%clk 0:08:17]} 29... Kg7 {[%clk
0:35:11]} 30. Rxe6 {[%clk 0:08:38]} 30... Rxf2+ {[%clk 0:35:32]} 31. Ke5 {[%clk
0:09:01]} 31... Rxa2 {[%clk 0:35:42]} 32. Rd1 {[%clk 0:08:51]} 32... a3 {[%clk
0:26:29]} 33. Rd7+ {[%clk 0:09:09]} 33... Kg8 {[%clk 0:26:53]} 34. Ra7 {[%clk
0:09:17]} 34... c4 {[%clk 0:24:39]} 35. Ree7 {[%clk 0:09:21]} 35... Rg2 {[%clk
0:23:02]} 36. Rxa3 {[%clk 0:09:45]} 36... Rc8 {[%clk 0:22:51]} 37. Rc3 {[%clk
0:09:00]} 37... h5 {[%clk 0:22:04]} 38. Kd4 {[%clk 0:08:58]} 38... Rd2+ {[%clk
0:21:40]} 39. Ke3 {[%clk 0:09:20]} 39... Rb2 {[%clk 0:21:24]} 40. Kd4 {[%clk
0:38:19]} 40... Rd2+ {[%clk 0:49:51]} 41. Ke3 {[%clk 0:38:38]} 41... Rd1 {[%clk
0:49:44]} 42. Re5 {[%clk 0:38:49]} 42... h4 {[%clk 0:49:47]} 43. Rg5+ {[%clk
0:38:21]} 43... Kf7 {[%clk 0:48:54]} 44. Rg4 {[%clk 0:38:44]} 44... Ke6 {[%clk
0:47:15]} 45. Rxh4 {[%clk 0:38:59]} 45... Kd6 {[%clk 0:47:38]} 46. Rh5 {[%clk
0:39:16]} 46... Rc7 {[%clk 0:46:00]} 47. h4 {[%clk 0:39:08]} 47... Rh1 {[%clk
0:45:36]} 48. Kd4 {[%clk 0:38:59]} 48... Rd1+ {[%clk 0:45:59]} 49. Ke3 {[%clk
0:39:22]} 49... Rc8 {[%clk 0:46:16]} 50. Rg5 {[%clk 0:39:12]} 50... Rc5 {[%clk
0:43:49]} 51. Rg6+ {[%clk 0:37:48]} 51... Ke5 {[%clk 0:44:18]} 52. Rg5+ {[%clk
0:38:05]} 52... Kd6 {[%clk 0:44:41]} 53. Rg6+ {[%clk 0:36:46]} 53... Ke7 {[%clk
0:43:28]} 54. Rg5 {[%clk 0:36:47]} 54... Rc8 {[%clk 0:43:23]} 55. h5 {[%clk
0:36:59]} 55... Rh1 {[%clk 0:43:34]} 56. Rd5 {[%clk 0:36:09]} 56... Ke6 {[%clk
0:43:51]} 57. Rg5 {[%clk 0:34:52]} 57... Re1+ {[%clk 0:41:35]} 58. Kd4 {[%clk
0:35:09]} 58... Rd1+ {[%clk 0:40:31]} 59. Ke3 {[%clk 0:35:32]} 59... Re1+ {[%clk
0:40:55]} 60. Kd4 {[%clk 0:35:53]} 60... Rd8+ {[%clk 0:41:21]} 61. Rd5 {[%clk
0:35:12]} 61... Rxe4+ {[%clk 0:41:37]} 62. Kxe4 {[%clk 0:35:36]} 62... Rxd5
{[%clk 0:42:01]} 63. Rxc4 {[%clk 0:36:01]} 63... Rxh5 {[%clk 0:42:25]} 64. Rc6+
{[%clk 0:36:24]} 1/2-1/2

[Variant "Standard"]
[Site "Europe Echecs"]

[Event "Sunway Sitges Chess Festival"]
[Date "2024.12.21"]
[White "Costache, Andrei Eugeniu"]
[Black "Naoum, Spyridon"]
[WhiteElo "2076"]
[BlackElo "2338"]
[Round "6.25"]
[Result "0-1"]
[TimeControl "40/5400+30:1800+30"]

1. e4 {[%clk 1:30:50]} 1... c5 {[%clk 1:29:42]} 2. Nf3 {[%clk 1:31:05]} 2... d6
{[%clk 1:30:07]} 3. d4 {[%clk 1:31:13]} 3... cxd4 {[%clk 1:30:31]} 4. Nxd4
{[%clk 1:31:38]} 4... Nf6 {[%clk 1:30:56]} 5. Nc3 {[%clk 1:32:00]} 5... Nc6
{[%clk 1:31:05]} 6. Be2 {[%clk 1:27:40]} 6... g6 {[%clk 1:28:01]} 7. Be3 {[%clk
1:27:36]} 7... Bg7 {[%clk 1:28:25]} 8. f3 {[%clk 1:23:25]} 8... O-O {[%clk
1:27:48]} 9. g4 {[%clk 1:22:02]} 9... Qb6 {[%clk 0:50:21]} 10. Qd2 {[%clk
1:07:56]} 10... Nxg4 {[%clk 0:34:00]} 11. Nxc6 {[%clk 0:56:43]} 11... Nxe3
{[%clk 0:28:20]} 12. Nxe7+ {[%clk 0:57:01]} 12... Kh8 {[%clk 0:28:50]} 13. Na4
{[%clk 0:31:47]} 13... Ng2+ {[%clk 0:24:26]} 14. Kf1 {[%clk 0:20:41]} 14... Ne3+
{[%clk 0:24:48]} 15. Kg1 {[%clk 0:18:36]} 15... Qd8 {[%clk 0:25:00]} 16. Qxe3
{[%clk 0:13:44]} 16... Qxe7 {[%clk 0:25:28]} 17. h4 {[%clk 0:11:44]} 17... d5
{[%clk 0:23:23]} 18. Rd1 {[%clk 0:10:05]} 18... dxe4 {[%clk 0:22:38]} 19. Qxe4
{[%clk 0:09:57]} 19... Qc7 {[%clk 0:22:45]} 20. Kf2 {[%clk 0:08:47]} 20... Bf5
{[%clk 0:23:01]} 21. Qb4 {[%clk 0:07:54]} 21... a5 {[%clk 0:15:03]} 22. Qc5
{[%clk 0:05:49]} 22... Qf4 {[%clk 0:15:05]} 23. Nb6 {[%clk 0:05:59]} 23... Rad8
{[%clk 0:10:59]} 24. Nd5 {[%clk 0:03:42]} 24... Qe5 {[%clk 0:10:45]} 25. c4
{[%clk 0:02:59]} 25... Qxb2 {[%clk 0:10:32]} 26. Qxa5 {[%clk 0:01:34]} 26... Ra8
{[%clk 0:08:14]} 27. Qd2 {[%clk 0:01:25]} 27... Rxa2 {[%clk 0:08:14]} 28. Qxb2
{[%clk 0:01:49]} 28... Rxb2 {[%clk 0:08:42]} 29. Rhe1 {[%clk 0:02:02]} 29... Re8
{[%clk 0:05:22]} 30. Nc7 {[%clk 0:02:19]} 30... Rc8 {[%clk 0:05:44]} 31. Nb5
{[%clk 0:02:42]} 31... Be6 {[%clk 0:04:08]} 32. Nd6 {[%clk 0:02:22]} 32... Ra8
{[%clk 0:04:36]} 33. Rb1 {[%clk 0:00:43]} 33... Bd4+ {[%clk 0:02:31]} 34. Kg2
{[%clk 0:00:49]} 34... Raa2 {[%clk 0:02:30]} 35. Rxb2 {[%clk 0:00:42]} 35...
Rxb2 {[%clk 0:02:59]} 36. Kh1 {[%clk 0:00:58]} 36... Bf2 {[%clk 0:02:55]} 37.
Ra1 {[%clk 0:00:34]} 37... Rxe2 {[%clk 0:03:13]} 38. Ra8+ {[%clk 0:00:34]} 38...
Kg7 {[%clk 0:03:38]} 39. Nxb7 {[%clk 0:00:43]} 39... Bxh4 {[%clk 0:03:45]} 40.
c5 {[%clk 0:31:04]} 40... Bd5 {[%clk 0:34:08]} 0-1

[Variant "Standard"]
[Site "Europe Echecs"]

[Event "Sunway Sitges Chess Festival"]
[Date "2024.12.21"]
[White "Paasikangas, Johanna"]
[Black "Shamatava, Nikolozi"]
[WhiteElo "2048"]
[BlackElo "2334"]
[Round "6.26"]
[Result "1/2-1/2"]
[TimeControl "40/5400+30:1800+30"]

1. d4 Nf6 2. c4 e6 3. g3 d5 4. Bg2 Be7 5. Nf3 O-O 6. O-O a5 7. Ne5 c6 8. Nc3
dxc4 9. a4 Na6 10. Nxc4 Nb4 11. e4 b6 12. Be3 Ba6 13. b3 Rc8 14. Qd2 Ng4 15. Bf4
e5 16. Bh3 exf4 17. Bxg4 fxg3 18. hxg3 Rb8 19. Rfe1 Re8 20. Rad1 Bf8 21. Kg2 Qc7
22. Qf4 Qb7 23. Bf3 Rbd8 24. e5 Qc7 25. Rh1 h6 26. Ne4 Nd5 27. Qh4 Bxc4 28. bxc4
Ne7 29. Bh5 Ng6 30. Qg4 Qd7 31. Qf3 Qe6 32. Bg4 Qxc4 33. e6 Nh8 34. Rxh6 gxh6
35. Nf6+ Kg7 36. Nh5+ Kg8 37. Nf6+ Kg7 38. Nh5+ Kg8 39. Nf6+ 1/2-1/2

[Variant "Standard"]
[Site "Europe Echecs"]

[Event "Sunway Sitges Chess Festival"]
[Date "2024.12.21"]
[White "Chanturia, Giorgi Mal"]
[Black "Alinasab, Mobina"]
[WhiteElo "2042"]
[BlackElo "2330"]
[Round "6.27"]
[Result "0-1"]
[TimeControl "40/5400+30:1800+30"]

1. e4 {[%clk 1:30:37]} 1... c5 {[%clk 1:30:09]} 2. Nf3 {[%clk 1:31:03]} 2... d6
{[%clk 1:29:52]} 3. d4 {[%clk 1:31:29]} 3... cxd4 {[%clk 1:29:58]} 4. Nxd4
{[%clk 1:31:58]} 4... Nf6 {[%clk 1:30:10]} 5. Nc3 {[%clk 1:32:26]} 5... a6
{[%clk 1:30:28]} 6. h3 {[%clk 1:32:43]} 6... e5 {[%clk 1:30:24]} 7. Nde2 {[%clk
1:33:08]} 7... h5 {[%clk 1:30:47]} 8. g3 {[%clk 1:33:34]} 8... b5 {[%clk
1:31:13]} 9. Bg2 {[%clk 1:33:44]} 9... Bb7 {[%clk 1:31:04]} 10. O-O {[%clk
1:33:26]} 10... Nbd7 {[%clk 1:28:34]} 11. a4 {[%clk 1:32:38]} 11... b4 {[%clk
1:26:18]} 12. Nd5 {[%clk 1:33:03]} 12... Nxd5 {[%clk 1:19:15]} 13. exd5 {[%clk
1:33:28]} 13... Be7 {[%clk 1:18:19]} 14. f4 {[%clk 1:26:34]} 14... O-O {[%clk
1:12:45]} 15. fxe5 {[%clk 1:24:46]} 15... dxe5 {[%clk 1:12:39]} 16. d6 {[%clk
1:23:30]} 16... Bf6 {[%clk 1:10:11]} 17. Be3 {[%clk 1:18:37]} 17... Bxg2 {[%clk
1:09:56]} 18. Kxg2 {[%clk 1:19:06]} 18... Bg5 {[%clk 1:07:22]} 19. Bg1 {[%clk
1:03:10]} 19... Qc8 {[%clk 0:50:21]} 20. c3 {[%clk 0:54:26]} 20... Qc6+ {[%clk
0:50:23]} 21. Kh2 {[%clk 0:54:34]} 21... Rab8 {[%clk 0:48:21]} 22. Rb1 {[%clk
0:49:16]} 22... b3 {[%clk 0:37:49]} 23. Nc1 {[%clk 0:36:55]} 23... h4 {[%clk
0:36:30]} 24. Bf2 {[%clk 0:31:29]} 24... Qxa4 {[%clk 0:28:43]} 25. Nd3 {[%clk
0:31:13]} 25... Qc4 {[%clk 0:25:38]} 26. Nb4 {[%clk 0:20:04]} 26... Nf6 {[%clk
0:15:21]} 27. gxh4 {[%clk 0:12:45]} 27... Bf4+ {[%clk 0:15:00]} 28. Kg1 {[%clk
0:13:13]} 28... Rfd8 {[%clk 0:09:41]} 29. Ra1 {[%clk 0:09:19]} 29... Ne4 {[%clk
0:09:23]} 30. d7 {[%clk 0:09:20]} 30... Nd2 {[%clk 0:04:41]} 31. Nxa6 {[%clk
0:06:37]} 31... Ra8 {[%clk 0:04:33]} 32. Nc5 {[%clk 0:07:06]} 32... Rxa1 {[%clk
0:01:33]} 33. Qxa1 {[%clk 0:07:35]} 33... Qxf1+ {[%clk 0:00:39]} 34. Qxf1 {[%clk
0:08:04]} 34... Nxf1 {[%clk 0:01:08]} 35. Kxf1 {[%clk 0:08:25]} 35... Bc1 {[%clk
0:00:57]} 36. Nd3 {[%clk 0:02:43]} 36... Rxd7 {[%clk 0:01:13]} 37. Ke2 {[%clk
0:03:12]} 37... Bh6 {[%clk 0:01:25]} 38. Be3 {[%clk 0:03:40]} 38... Bxe3 {[%clk
0:01:18]} 39. Kxe3 {[%clk 0:04:09]} 39... f6 {[%clk 0:01:09]} 40. Nc5 {[%clk
0:33:21]} 40... Rc7 {[%clk 0:31:06]} 41. Nxb3 {[%clk 0:32:47]} 41... Rb7 {[%clk
0:30:57]} 42. Na5 {[%clk 0:33:16]} 42... Rxb2 {[%clk 0:31:19]} 43. c4 {[%clk
0:33:43]} 43... Kf7 {[%clk 0:31:40]} 0-1

[Variant "Standard"]
[Site "Europe Echecs"]

[Event "Sunway Sitges Chess Festival"]
[Date "2024.12.21"]
[White "Koh, Ming Yao Gavin"]
[Black "Savitha Shri B"]
[WhiteElo "1995"]
[BlackElo "2329"]
[Round "6.28"]
[Result "1/2-1/2"]
[TimeControl "40/5400+30:1800+30"]

1. d4 {[%clk 1:30:55]} 1... Nf6 {[%clk 1:28:51]} 2. c4 {[%clk 1:31:16]} 2... g6
{[%clk 1:29:13]} 3. Nc3 {[%clk 1:31:36]} 3... Bg7 {[%clk 1:29:35]} 4. e4 {[%clk
1:32:01]} 4... d6 {[%clk 1:29:57]} 5. Be2 {[%clk 1:32:23]} 5... O-O {[%clk
1:30:21]} 6. Be3 {[%clk 1:32:49]} 6... Nc6 {[%clk 1:30:43]} 7. d5 {[%clk
1:32:25]} 7... Ne5 {[%clk 1:31:07]} 8. f4 {[%clk 1:32:40]} 8... Neg4 {[%clk
1:31:31]} 9. Bd2 {[%clk 1:32:55]} 9... Nh6 {[%clk 1:31:55]} 10. h3 {[%clk
1:33:13]} 10... e6 {[%clk 1:21:01]} 11. dxe6 {[%clk 1:31:18]} 11... fxe6 {[%clk
1:19:48]} 12. g4 {[%clk 1:26:55]} 12... Nd7 {[%clk 1:10:03]} 13. Nf3 {[%clk
1:21:00]} 13... Nc5 {[%clk 1:06:43]} 14. Qc2 {[%clk 1:16:54]} 14... Bd7 {[%clk
1:02:14]} 15. O-O-O {[%clk 0:59:34]} 15... Bc6 {[%clk 0:52:30]} 16. Be3 {[%clk
0:58:50]} 16... Qe8 {[%clk 0:42:17]} 17. Nd4 {[%clk 0:48:00]} 17... Bd7 {[%clk
0:42:35]} 18. Ndb5 {[%clk 0:41:24]} 18... Na6 {[%clk 0:39:13]} 19. c5 {[%clk
0:33:08]} 19... dxc5 {[%clk 0:37:55]} 20. g5 {[%clk 0:33:28]} 20... Nf7 {[%clk
0:35:45]} 21. e5 {[%clk 0:32:40]} 21... Bc6 {[%clk 0:31:41]} 22. Rh2 {[%clk
0:30:46]} 22... Qe7 {[%clk 0:24:50]} 23. a3 {[%clk 0:25:30]} 23... Nb8 {[%clk
0:15:21]} 24. Ne4 {[%clk 0:25:19]} 24... Bxe4 {[%clk 0:15:45]} 25. Qxe4 {[%clk
0:25:43]} 25... Nc6 {[%clk 0:15:25]} 26. h4 {[%clk 0:24:21]} 26... Rfd8 {[%clk
0:08:58]} 27. h5 {[%clk 0:21:37]} 27... Rxd1+ {[%clk 0:12:09]} 28. Bxd1 {[%clk
0:21:57]} 28... Nh8 {[%clk 0:12:22]} 29. hxg6 {[%clk 0:16:43]} 29... Nxg6 {[%clk
0:12:33]} 30. Rc2 {[%clk 0:15:50]} 30... Rd8 {[%clk 0:10:47]} 31. Rxc5 {[%clk
0:14:24]} 31... a6 {[%clk 0:06:01]} 32. Nc3 {[%clk 0:14:39]} 32... Rf8 {[%clk
0:06:22]} 33. Rc4 {[%clk 0:14:27]} 33... Qf7 {[%clk 0:04:21]} 34. Bc2 {[%clk
0:12:37]} 34... Rd8 {[%clk 0:04:27]} 35. Ne2 {[%clk 0:11:41]} 35... Ncxe5 {[%clk
0:04:07]} 36. Rd4 {[%clk 0:11:25]} 36... Nc6 {[%clk 0:03:03]} 37. Rxd8+ {[%clk
0:10:27]} 37... Nxd8 {[%clk 0:03:32]} 38. Bb3 {[%clk 0:08:05]} 38... Kh8 {[%clk
0:03:14]} 39. Nd4 {[%clk 0:08:23]} 39... Nf8 {[%clk 0:03:28]} 40. Kc2 {[%clk
0:35:44]} 40... c5 {[%clk 0:32:30]} 41. Nxe6 {[%clk 0:34:38]} 41... Ndxe6 {[%clk
0:19:45]} 42. f5 {[%clk 0:34:35]} 42... Qh5 {[%clk 0:18:33]} 43. f6 {[%clk
0:34:11]} 43... Qg6 {[%clk 0:17:35]} 44. Qxg6 {[%clk 0:33:42]} 44... hxg6 {[%clk
0:17:19]} 45. fxg7+ {[%clk 0:33:18]} 45... Kxg7 {[%clk 0:17:09]} 46. Bd5 {[%clk
0:32:36]} 46... b6 {[%clk 0:15:53]} 47. b4 {[%clk 0:29:44]} 47... Nc7 {[%clk
0:14:24]} 48. Bb7 {[%clk 0:28:32]} 48... Nfe6 {[%clk 0:14:46]} 49. bxc5 {[%clk
0:28:10]} 49... bxc5 {[%clk 0:13:52]} 50. Kb3 {[%clk 0:27:29]} 1/2-1/2

[Variant "Standard"]
[Site "Europe Echecs"]

[Event "Sunway Sitges Chess Festival"]
[Date "2024.12.21"]
[White "Safarov, Deniel"]
[Black "Mannion, Stephen R"]
[WhiteElo "2319"]
[BlackElo "2139"]
[Round "6.29"]
[Result "1/2-1/2"]
[TimeControl "40/5400+30:1800+30"]

1. e4 {[%clk 1:30:54]} 1... e5 {[%clk 1:28:14]} 2. Nf3 {[%clk 1:31:06]} 2... Nc6
{[%clk 1:28:38]} 3. Bb5 {[%clk 1:31:28]} 3... a6 {[%clk 1:29:02]} 4. Ba4 {[%clk
1:31:51]} 4... Nf6 {[%clk 1:29:22]} 5. O-O {[%clk 1:32:13]} 5... Be7 {[%clk
1:29:47]} 6. d3 {[%clk 1:32:38]} 6... b5 {[%clk 1:29:02]} 7. Bb3 {[%clk
1:33:02]} 7... d6 {[%clk 1:29:21]} 8. Bd2 {[%clk 1:33:27]} 8... O-O {[%clk
1:29:24]} 9. h3 {[%clk 1:33:25]} 9... Bb7 {[%clk 1:23:21]} 10. Re1 {[%clk
1:26:04]} 10... Nb8 {[%clk 1:17:52]} 11. a4 {[%clk 1:19:18]} 11... c5 {[%clk
1:11:38]} 12. Nc3 {[%clk 1:15:11]} 12... b4 {[%clk 1:07:08]} 13. Ne2 {[%clk
1:13:08]} 13... Nc6 {[%clk 1:07:36]} 14. Ng3 {[%clk 1:11:14]} 14... Bc8 {[%clk
1:07:34]} 15. c3 {[%clk 1:09:52]} 15... Rb8 {[%clk 1:06:05]} 16. Be3 {[%clk
0:57:32]} 16... Na5 {[%clk 0:53:20]} 17. Bc2 {[%clk 0:55:04]} 17... bxc3 {[%clk
0:33:22]} 18. bxc3 {[%clk 0:54:53]} 18... Qc7 {[%clk 0:33:50]} 19. Nh2 {[%clk
0:33:37]} 19... d5 {[%clk 0:27:10]} 20. Bg5 {[%clk 0:32:08]} 20... dxe4 {[%clk
0:26:19]} 21. dxe4 {[%clk 0:32:32]} 21... h6 {[%clk 0:24:11]} 22. Bxf6 {[%clk
0:32:56]} 22... Bxf6 {[%clk 0:24:32]} 23. Ng4 {[%clk 0:33:19]} 23... Bg5 {[%clk
0:22:41]} 24. Nf5 {[%clk 0:31:21]} 24... Rd8 {[%clk 0:16:25]} 25. Qf3 {[%clk
0:30:06]} 25... Rb2 {[%clk 0:16:25]} 26. Re2 {[%clk 0:23:53]} 26... Nc4 {[%clk
0:09:36]} 27. Qg3 {[%clk 0:19:23]} 27... Bxf5 {[%clk 0:09:04]} 28. exf5 {[%clk
0:19:49]} 28... Bf4 {[%clk 0:09:24]} 29. Qh4 {[%clk 0:19:58]} 29... f6 {[%clk
0:08:30]} 30. g3 {[%clk 0:10:54]} 30... Nd2 {[%clk 0:08:57]} 31. Be4 {[%clk
0:11:23]} 31... Bg5 {[%clk 0:05:47]} 32. Qh5 {[%clk 0:11:49]} 32... Qb6 {[%clk
0:06:01]} 33. Rd1 {[%clk 0:07:46]} 33... Nf3+ {[%clk 0:06:05]} 34. Bxf3 {[%clk
0:07:26]} 34... Rxd1+ {[%clk 0:06:33]} 35. Kg2 {[%clk 0:07:49]} 35... Rd8 {[%clk
0:05:27]} 36. h4 {[%clk 0:06:33]} 36... Bc1 {[%clk 0:04:41]} 37. Rxb2 {[%clk
0:06:25]} 37... Bxb2 {[%clk 0:04:13]} 38. c4 {[%clk 0:06:19]} 38... Kf8 {[%clk
0:03:55]} 39. Qg6 {[%clk 0:02:28]} 39... Bd4 {[%clk 0:01:15]} 40. Qh7 {[%clk
0:32:05]} 40... a5 {[%clk 0:30:43]} 41. Kh3 {[%clk 0:28:52]} 41... Qb3 {[%clk
0:23:53]} 42. Nxf6 {[%clk 0:14:05]} 42... gxf6 {[%clk 0:20:04]} 43. Qxh6+ {[%clk
0:11:43]} 43... Ke8 {[%clk 0:15:32]} 44. Bc6+ {[%clk 0:09:37]} 44... Ke7 {[%clk
0:15:46]} 45. Qg7+ {[%clk 0:09:26]} 45... Kd6 {[%clk 0:16:11]} 46. Qxf6+ {[%clk
0:09:47]} 46... Kc7 {[%clk 0:16:34]} 47. Bb5 {[%clk 0:10:16]} 47... Qf3 {[%clk
0:08:09]} 48. Qe7+ {[%clk 0:09:58]} 48... Kc8 {[%clk 0:08:37]} 49. Ba6+ {[%clk
0:10:22]} 49... Kb8 {[%clk 0:09:04]} 50. Qxd8+ {[%clk 0:10:13]} 50... Ka7 {[%clk
0:09:32]} 51. Qc8 {[%clk 0:10:16]} 51... Bxf2 {[%clk 0:08:21]} 52. Qb7+ {[%clk
0:10:36]} 52... Qxb7 {[%clk 0:08:46]} 53. Bxb7 {[%clk 0:11:03]} 53... Kxb7
{[%clk 0:08:54]} 54. f6 {[%clk 0:11:29]} 54... Be3 {[%clk 0:08:50]} 55. Kg4
{[%clk 0:10:04]} 55... Kc7 {[%clk 0:08:25]} 56. Kf5 {[%clk 0:09:01]} 56... Kd6
{[%clk 0:08:24]} 57. Kg6 {[%clk 0:09:00]} 57... e4 {[%clk 0:08:18]} 1/2-1/2

[Variant "Standard"]
[Site "Europe Echecs"]

[Event "Sunway Sitges Chess Festival"]
[Date "2024.12.21"]
[White "Velten, Paul"]
[Black "Swara Lakshmi S Nair"]
[WhiteElo "2501"]
[BlackElo "1976"]
[Round "6.30"]
[Result "1-0"]
[TimeControl "40/5400+30:1800+30"]

1. Nf3 {[%clk 1:30:29]} 1... Nf6 {[%clk 1:27:13]} 2. c4 {[%clk 1:29:18]} 2... g6
{[%clk 1:26:30]} 3. Nc3 {[%clk 1:29:09]} 3... Bg7 {[%clk 1:17:46]} 4. e4 {[%clk
1:29:19]} 4... e5 {[%clk 1:17:47]} 5. Nxe5 {[%clk 1:23:02]} 5... O-O {[%clk
1:18:09]} 6. Nf3 {[%clk 1:21:29]} 6... Re8 {[%clk 1:04:34]} 7. d3 {[%clk
1:05:44]} 7... d5 {[%clk 0:55:10]} 8. cxd5 {[%clk 1:16:17]} 8... Nxd5 {[%clk
0:52:30]} 9. Bd2 {[%clk 1:09:09]} 9... Nxc3 {[%clk 0:51:03]} 10. Bxc3 {[%clk
1:04:57]} 10... Bxc3+ 11. bxc3 {[%clk 1:09:30]} 11... f5 {[%clk 0:21:56]} 12. e5
{[%clk 1:07:35]} 12... c5 {[%clk 0:19:10]} 13. d4 {[%clk 1:06:32]} 13... Be6
{[%clk 0:15:39]} 14. Bb5 {[%clk 1:05:48]} 14... Nc6 {[%clk 0:15:01]} 15. O-O
{[%clk 1:06:02]} 15... Bd5 {[%clk 0:15:25]} 16. dxc5 {[%clk 1:03:51]} 16... Rc8
{[%clk 0:07:59]} 17. Re1 {[%clk 1:02:38]} 17... Bxf3 {[%clk 0:03:36]} 18. Qxf3
{[%clk 1:02:45]} 18... Rxe5 {[%clk 0:03:09]} 19. Rxe5 {[%clk 1:00:18]} 19...
Nxe5 {[%clk 0:03:37]} 20. Qxb7 {[%clk 1:00:29]} 20... Rxc5 {[%clk 0:02:07]} 21.
Be2 {[%clk 1:00:10]} 21... Rxc3 {[%clk 0:01:20]} 22. Qxa7 {[%clk 0:58:24]} 22...
Rc7 {[%clk 0:01:09]} 23. Qe3 {[%clk 0:57:51]} 23... Re7 {[%clk 0:00:52]} 24. a4
{[%clk 0:57:14]} 24... Qa5 {[%clk 0:00:45]} 25. h3 {[%clk 0:57:17]} 25... Nc6
{[%clk 0:00:34]} 26. Qb3+ {[%clk 0:54:59]} 26... Kf8 {[%clk 0:01:01]} 27. Bf1
{[%clk 0:54:57]} 27... Nd4 {[%clk 0:00:35]} 28. Qb8+ {[%clk 0:54:52]} 28... Kg7
{[%clk 0:01:03]} 29. Qd6 {[%clk 0:54:12]} 29... Re4 {[%clk 0:00:34]} 30. Rb1
{[%clk 0:48:09]} 30... Qa7 {[%clk 0:00:35]} 31. Bd3 {[%clk 0:45:11]} 31... Re7
{[%clk 0:00:45]} 32. a5 {[%clk 0:45:06]} 32... f4 {[%clk 0:00:33]} 33. a6 {[%clk
0:44:42]} 33... f3 {[%clk 0:01:02]} 34. Qxe7+ {[%clk 0:40:27]} 34... Qxe7 {[%clk
0:01:29]} 35. Rb7 {[%clk 0:40:51]} 35... Qxb7 {[%clk 0:01:54]} 36. axb7 {[%clk
0:41:17]} 36... Nc6 {[%clk 0:02:19]} 37. Bb5 {[%clk 0:37:58]} 37... Nb8 {[%clk
0:02:42]} 38. g4 {[%clk 0:38:12]} 38... h5 {[%clk 0:02:19]} 39. g5 {[%clk
0:38:26]} 39... h4 {[%clk 0:02:40]} 40. Bd3 {[%clk 1:08:32]} 40... Kf7 {[%clk
0:32:21]} 41. Kf1 {[%clk 1:08:51]} 41... Nd7 {[%clk 0:32:01]} 42. Ke1 {[%clk
1:09:10]} 42... Ke7 {[%clk 0:30:21]} 43. Bxg6 {[%clk 1:09:18]} 43... Kd6 {[%clk
0:30:48]} 44. Be8 {[%clk 1:09:31]} 44... Nb8 {[%clk 0:31:04]} 45. g6 {[%clk
1:09:47]} 45... Kd5 {[%clk 0:30:55]} 1-0

[Variant "Standard"]
[Site "Europe Echecs"]